bitfinex/quotes_ETHUSD_20251017
["timestamp","ask_amount","ask_price","bid_price","bid_amount"]
[1760712643154,2.64020358,3787.6,3786.2,0.2494117]
[1760712643494,2.6408953,3786.6,3785.5,0.223]
[1760712643678,0.1484,3786.8,3784.9,0.30928802]
[1760712643879,2.78917185,3786.8,3785.0,0.47702007]
[1760712644095,2.64065377,3787.0,3786.2,2.64114607]
[1760712644299,0.151,3786.9,3785.0,0.4506]
[1760712644475,0.151,3786.9,3785.1,2.64193812]
[1760712644476,2.79173049,3786.9,3785.1,2.64193812]
[1760712644671,2.79173049,3786.9,3785.4,2.64166678]
[1760712644672,2.64121526,3786.2,3785.4,2.64166678]
[1760712644897,0.151,3786.9,3785.5,0.02641658]
[1760712645222,2.64067465,3787.0,3786.2,2.64116377]
[1760712645402,0.2509,3787.7,3786.3,2.64106378]
[1760712645597,0.2509,3787.7,3786.0,2.64125198]
[1760712645798,0.0995,3787.6,3785.3,0.4506]
[1760712645959,0.0995,3787.6,3785.8,2.64139247]
[1760712646300,2.64093065,3786.6,3785.4,2.64172874]
[1760712646601,0.15,3786.5,3785.7,2.64149603]
[1760712646763,2.79098612,3786.5,3785.5,2.64164767]
[1760712646964,2.64114503,3786.3,3785.3,2.64177847]
[1760712647284,0.15,3786.5,3784.8,0.6736]
[1760712647487,2.64126684,3786.1,3785.3,2.64175086]
[1760712647689,0.42908786,3786.5,3784.9,0.33158858]
[1760712647690,0.25,3786.5,3784.9,0.33158858]
[1760712647888,2.64103105,3786.4,3785.0,2.64200792]
[1760712648189,2.64144962,3785.8,3785.7,0.132]
[1760712648695,2.64138601,3785.9,3785.7,0.132]
[1760712648889,0.25,3786.5,3785.7,0.132]
[1760712649099,2.64115664,3786.3,3784.8,0.223]
[1760712649286,2.64136124,3786.0,3785.9,0.132]
[1760712649609,2.64136124,3786.0,3784.8,0.223]
[1760712649610,0.51161566,3786.2,3785.5,0.132]
[1760712649812,2.64158918,3785.6,3785.5,0.132]
[1760712650020,2.78948918,3785.6,3785.5,0.132]
[1760712650185,2.64184248,3785.3,3783.9,0.001]
[1760712650383,2.64166744,3785.5,3785.1,0.132]
[1760712650384,2.64171055,3785.5,3785.1,0.132]
[1760712650593,2.64165896,3785.5,3785.1,0.132]
[1760712650916,2.64156756,3785.7,3785.3,0.132]
[1760712651112,2.64146645,3785.8,3785.3,0.132]
[1760712651411,0.29344403,3786.4,3784.2,0.4506]
[1760712651412,2.64157105,3785.7,3785.6,0.132]
[1760712651718,2.64172874,3785.4,3785.3,0.132]
[1760712651882,2.64200356,3785.1,3785.0,0.132]
[1760712652084,2.64200356,3785.1,3784.7,0.132]
[1760712652274,0.132,3785.3,3784.7,0.132]
[1760712652494,2.64208333,3784.9,3784.7,0.132]
[1760712652723,2.64195805,3785.1,3784.7,0.132]
[1760712652900,2.64214753,3784.8,3784.7,0.132]
[1760712653415,2.64214753,3784.8,3783.9,0.001]
[1760712653416,0.132,3784.7,3783.9,0.001]
[1760712653620,2.64270613,3784.0,3783.9,0.001]
[1760712653784,0.132,3784.4,3783.9,0.001]
[1760712653980,2.64267705,3784.1,3783.9,0.001]
[1760712654181,0.1493,3784.9,3783.9,0.001]
[1760712654380,0.2813,3784.9,3784.0,0.132]
[1760712654578,2.64232824,3784.6,3783.9,2.64376051]
[1760712654781,0.1493,3784.9,3783.9,0.001]
[1760712655030,0.1493,3784.9,3784.2,2.6425205]
[1760712655196,0.0995,3785.4,3784.0,2.64270613]
[1760712655197,2.74123394,3785.4,3784.0,2.64270613]
[1760712655402,2.64158918,3785.6,3784.2,0.32937573]
[1760712655596,2.64158918,3785.6,3784.2,2.64256646]
[1760712655597,2.64201372,3785.0,3784.2,2.64256646]
[1760712655794,0.1,3785.6,3783.9,0.001]
[1760712655995,2.64203508,3785.0,3784.0,2.64265221]
[1760712656295,2.74174371,3785.4,3783.9,0.001]
[1760712656296,2.64197596,3785.1,3783.9,0.001]
[1760712656504,2.64245347,3784.4,3783.9,0.001]
[1760712656704,2.64165896,3785.5,3783.9,0.001]
[1760712656705,0.1,3784.9,3783.9,0.001]
[1760712657593,2.64270613,3784.0,3783.5,0.001]
[1760712657926,2.64347458,3782.9,3780.9,2.64480732]
[1760712658130,2.64347458,3782.9,3781.8,2.64423967]
[1760712658423,2.64347458,3782.9,3781.5,0.001]
[1760712658844,2.74247458,3782.9,3781.5,2.64544656]
[1760712658988,2.74247458,3782.9,3781.5,0.001]
[1760712659431,2.74247458,3782.9,3781.5,2.64540343]
[1760712659734,2.74247458,3782.9,3781.5,2.64544378]
[1760712659901,2.74247458,3782.9,3781.5,0.001]
[1760712660889,5.10407458,3782.9,3781.5,0.001]
[1760712661090,12.37663856,3782.9,3781.5,0.001]
[1760712661295,17.25234656,3782.9,3781.5,0.001]
[1760712661590,1.95724812,3782.9,3782.4,0.2366]
[1760712661825,0.41476126,3785.4,3782.9,3.80526]
[1760712662028,0.41476126,3785.4,3783.2,1.728]
[1760712662333,0.04607281,3786.3,3783.8,1.728]
[1760712662497,2.64139974,3785.9,3785.1,2.64187431]
[1760712662693,2.64139974,3785.9,3783.5,2.64304309]
[1760712662694,0.2505,3785.8,3783.5,0.4294]
[1760712663030,0.149,3785.8,3783.6,2.64298551]
[1760712663195,2.64168487,3785.5,3783.7,0.73663855]
[1760712663396,2.79045068,3785.8,3783.7,0.73663855]
[1760712663397,2.64156532,3785.7,3784.6,2.64227826]
[1760712663615,2.64178376,3785.4,3784.2,0.2366]
[1760712663815,0.19505576,3785.8,3783.8,0.4294]
[1760712664065,2.3616,3785.1,3782.8,0.001]
[1760712664262,0.6336,3784.9,3782.8,0.001]
[1760712664429,2.64292098,3783.7,3783.4,0.132]
[1760712664626,2.64277597,3783.9,3783.4,0.132]
[1760712664826,2.68848821,3784.5,3782.8,0.001]
[1760712664827,2.6424268,3784.4,3783.2,0.2366]
[1760712665023,2.64256646,3784.2,3783.7,0.132]
[1760712665277,2.77476054,3784.0,3783.4,0.132]
[1760712665472,0.132,3784.0,3783.4,0.132]
[1760712665963,0.1312,3784.0,3783.4,0.132]
[1760712666121,2.64305537,3783.5,3783.4,0.132]
[1760712666326,2.64347458,3782.9,3782.8,0.001]
[1760712666559,0.1508,3782.9,3782.8,0.001]
[1760712666745,0.1024,3783.5,3782.8,0.001]
[1760712666948,0.41466533,3783.6,3783.5,2.64305537]
[1760712667151,0.146,3786.0,3783.5,0.69370554]
[1760712667152,3.11387,3785.7,3783.5,0.69370554]
[1760712667342,0.41450706,3785.7,3783.5,0.4294]
[1760712667544,2.64194124,3785.1,3784.2,2.64255588]
[1760712667879,2.64194124,3785.1,3784.3,2.64248752]
[1760712668079,0.046054,3785.3,3783.5,0.4294]
[1760712668255,2.642288,3784.6,3782.7,0.4294]
[1760712668463,0.2642288,3784.5,3782.7,0.4294]
[1760712668644,0.6336,3784.3,3782.2,0.2366]
[1760712668842,0.6336,3784.5,3782.2,0.2366]
[1760712668843,2.64306882,3783.5,3782.7,2.6435454]
[1760712669075,0.1043,3784.2,3782.2,0.2366]
[1760712669242,0.1486,3783.6,3782.2,0.2366]
[1760712669444,2.78907458,3782.9,3781.8,2.64423508]
[1760712669890,2.78907458,3782.9,3781.5,2.64545211]
[1760712669891,2.78907458,3782.9,3781.5,0.001]
[1760712670189,6.12340818,3782.9,3781.5,0.001]
[1760712670405,6.29038818,3782.9,3781.5,0.001]
[1760712670618,4.052146,3783.0,3782.1,0.2366]
[1760712670750,0.04608312,3783.5,3783.2,2.6432064]
[1760712670952,0.1573,3784.8,3783.2,0.4294]
[1760712671184,0.1573,3784.8,3782.8,0.001]
[1760712671185,2.19847,3784.7,3782.8,0.001]
[1760712671343,0.04606661,3784.4,3782.8,0.02743544]
[1760712671549,0.04606661,3784.4,3782.9,0.4294]
[1760712671790,0.04606661,3784.4,3783.0,2.64334565]
[1760712672006,2.64270956,3784.0,3783.1,2.64333395]
[1760712672150,2.64270956,3784.0,3782.9,3.07286841]
[1760712672151,2.64249892,3784.3,3782.9,0.4294]
[1760712672350,0.26885655,3784.2,3782.9,0.4294]
[1760712672555,2.64280833,3783.9,3782.9,0.4294]
[1760712672758,0.26885655,3784.2,3782.8,0.001]
[1760712673002,0.1481,3783.9,3782.8,0.001]
[1760712673292,0.41453678,3784.9,3783.0,0.2366]
[1760712673293,0.1494,3784.5,3783.0,0.2366]
[1760712673479,0.41453678,3784.9,3783.1,0.4294]
[1760712673797,0.0480604,3785.1,3783.1,0.4294]
[1760712674155,2.6420612,3785.0,3784.1,2.64259874]
[1760712674350,0.53320025,3784.9,3783.6,0.4294]
[1760712674581,2.64395315,3785.1,3783.6,0.4294]
[1760712674897,2.64201271,3785.0,3784.1,2.64258227]
[1760712675051,2.64201054,3785.0,3784.1,2.64262572]
[1760712675256,2.64201054,3785.0,3783.9,2.6427724]
[1760712675473,2.64201054,3785.0,3784.2,2.64251288]
[1760712675669,2.64201054,3785.0,3783.6,0.4294]
[1760712675670,0.26440105,3785.0,3783.8,2.6427986]
[1760712675869,0.002,3785.1,3783.6,3.07236585]
[1760712675870,0.002,3785.1,3783.6,0.4294]
[1760712676082,5.6769,3785.0,3783.0,0.2366]
[1760712676284,0.132,3784.0,3783.4,0.132]
[1760712676483,2.64305537,3783.5,3783.4,0.132]
[1760712676680,0.1562,3783.9,3782.9,0.001]
[1760712676681,2.6434047,3783.0,3782.9,0.001]
[1760712676883,3.17207214,3783.0,3782.9,0.001]
[1760712677082,3.27207214,3783.0,3782.9,0.001]
[1760712677285,0.1006,3786.7,3782.9,0.4304]
[1760712677572,2.64218619,3784.8,3783.9,2.64273882]
[1760712677769,2.64219826,3784.8,3783.9,2.6427308]
[1760712677968,0.4144665,3785.4,3783.8,0.2366]
[1760712678202,2.64220685,3784.8,3783.8,0.2366]
[1760712678405,2.64193605,3785.2,3783.8,0.2366]
[1760712678579,2.64209638,3784.9,3783.8,0.2366]
[1760712678782,0.1932571,3785.5,3783.8,0.2366]
[1760712678985,2.64219754,3784.8,3783.9,2.64276433]
[1760712679180,0.002,3785.1,3783.8,0.2366]
[1760712679580,2.64200792,3785.0,3782.7,0.2366]
[1760712679803,0.41020079,3784.9,3783.2,0.2366]
[1760712680009,2.64214753,3784.8,3783.2,0.2366]
[1760712680193,0.2473,3784.9,3783.2,0.2366]
[1760712680374,2.839,3784.8,3783.2,0.2366]
[1760712680579,2.839,3784.8,3782.9,0.4304]
[1760712680580,2.64319509,3783.3,3782.9,0.4304]
[1760712680775,2.642732,3784.0,3782.9,0.4304]
[1760712681012,2.6434047,3783.0,3782.9,0.001]
[1760712681215,5.1601047,3783.0,3782.9,0.001]
[1760712681378,4.6285047,3783.0,3782.9,0.001]
[1760712681578,2.6434047,3783.0,3782.9,0.001]
[1760712682101,2.7460047,3783.0,3782.9,0.001]
[1760712682301,3.28493665,3783.0,3782.9,0.001]
[1760712682478,3.18233665,3783.0,3782.9,0.001]
[1760712682681,5.92901658,3783.0,3782.9,0.001]
[1760712682898,7.65701658,3783.0,3782.9,0.001]
[1760712683101,2.64368423,3782.6,3782.5,1e-08]
[1760712683337,4.91185265,3782.6,3782.5,1e-08]
[1760712683634,5.54545265,3782.6,3782.5,1e-08]
[1760712683835,12.29969265,3782.6,3782.5,1e-08]
[1760712684048,3.27798332,3781.6,3779.9,0.001]
[1760712684223,7.48104272,3780.4,3779.9,0.001]
[1760712684441,7.48104272,3780.4,3776.5,0.4713]
[1760712684442,30.6336,3780.3,3776.5,0.4713]
[1760712684750,2.64678312,3778.2,3776.5,3.11923898]
[1760712684900,1.882,3779.1,3776.6,0.4713]
[1760712685100,0.154,3779.1,3776.6,0.4713]
[1760712685644,2.64714349,3777.7,3776.6,0.4713]
[1760712685947,1.728,3778.7,3776.6,0.4713]
[1760712686153,2.64718869,3777.6,3776.6,3.11916875]
[1760712686303,0.6336,3778.9,3776.4,0.2341]
[1760712686304,0.56919429,3779.1,3776.4,0.2341]
[1760712686507,4.139724,3779.0,3776.7,0.4713]
[1760712686823,2.64679084,3778.2,3777.2,2.64746159]
[1760712687132,2.64679084,3778.2,3776.4,2.8820546]
[1760712687133,2.64740152,3777.3,3777.0,0.132]
[1760712687341,2.64750015,3777.2,3777.0,0.132]
[1760712687516,0.132,3777.6,3777.0,0.132]
[1760712687718,2.64753382,3777.1,3777.0,0.132]
[1760712687944,2.64795715,3776.5,3775.9,0.2341]
[1760712688258,0.26475338,3777.1,3775.4,0.4723]
[1760712688411,0.7876,3779.1,3776.4,0.2341]
[1760712688613,0.154,3779.1,3776.5,0.4713]
[1760712688828,2.64683721,3778.1,3777.1,2.64753252]
[1760712689035,2.64683721,3778.1,3777.2,0.26475325]
[1760712689235,2.64683949,3778.1,3777.2,0.26475325]
[1760712689516,0.41520945,3778.7,3777.2,0.26475325]
[1760712689714,0.15135357,3778.9,3777.3,0.02647393]
[1760712689715,2.69244599,3778.9,3777.3,0.02647393]
[1760712690043,0.19965357,3778.9,3777.4,0.4713]
[1760712690217,0.19965357,3778.9,3777.1,0.2341]
[1760712690622,2.64634275,3778.8,3777.2,2.6474363]
[1760712690949,3.2794154,3779.6,3777.1,0.2341]
[1760712690950,2.64621861,3779.0,3777.3,3.11867445]
[1760712691125,7.914292,3779.8,3777.4,0.33527745]
[1760712691331,0.41510942,3779.4,3777.9,2.64695]
[1760712691542,2.64609461,3779.2,3778.0,2.64687252]
[1760712691922,0.04612757,3779.5,3778.0,2.64687252]
[1760712692255,0.41511302,3779.8,3777.2,2.64744903]
[1760712692256,0.41511302,3779.8,3778.1,0.73186833]
[1760712692547,2.64570839,3779.8,3778.9,2.64626992]
[1760712692754,2.64571983,3779.7,3778.8,2.64633288]
[1760712692926,0.04611976,3780.0,3778.3,2.64669295]
[1760712693126,2.64577205,3779.7,3778.8,2.64628778]
[1760712693331,0.1473,3779.8,3778.4,0.33520929]
[1760712693531,0.1473,3779.8,3778.1,0.2341]
[1760712693532,2.64625611,3779.0,3778.1,2.88092763]
[1760712693728,2.64630141,3778.9,3777.7,2.64710368]
[1760712693922,2.64578262,3779.6,3778.0,2.64686382]
[1760712694254,2.64632833,3778.9,3778.0,2.64690142]
[1760712694452,0.26463283,3778.9,3777.6,0.2341]
[1760712694751,0.1586,3778.8,3776.8,0.4713]
[1760712694941,0.1586,3778.8,3777.2,0.4713]
[1760712695117,0.1586,3778.8,3777.3,2.64739364]
[1760712695324,2.64697743,3777.9,3777.2,0.4713]
[1760712695520,2.64672154,3778.3,3777.5,2.64724926]
[1760712695856,0.41517621,3779.2,3777.5,0.31185493]
[1760712696056,0.41517621,3779.2,3777.5,2.64725347]
[1760712696358,0.41517621,3779.2,3777.7,2.64709888]
[1760712696578,2.64601396,3779.3,3778.0,2.64686652]
[1760712696869,2.79299654,3779.8,3778.0,2.64686635]
[1760712696870,2.64639897,3778.8,3778.0,2.64686635]
[1760712697163,0.41511264,3780.0,3778.1,0.02646833]
[1760712697332,0.11864865,3780.9,3778.2,2.646763]
[1760712697660,2.9722202,3781.6,3777.1,0.8687]
[1760712697661,0.1491,3780.8,3777.1,0.2351]
[1760712697830,0.1491,3780.8,3777.2,0.4713]
[1760712697831,1.728,3780.6,3777.2,0.4713]
[1760712698037,0.6336,3779.8,3777.2,0.4713]
[1760712698232,0.64761221,3779.7,3777.5,2.64720139]
[1760712698426,2.6466229,3778.4,3778.3,0.132]
[1760712698626,2.64634275,3778.8,3777.2,0.4713]
[1760712698627,2.6470795,3777.8,3777.2,0.4713]
[1760712698831,2.64649808,3778.6,3777.7,0.132]
[1760712698832,2.64655286,3778.5,3777.7,0.132]
[1760712699065,2.64705143,3777.8,3777.7,0.132]
[1760712699263,2.92441969,3778.5,3777.1,0.001]
[1760712699264,2.64746372,3777.2,3777.1,0.001]
[1760712700428,0.04614328,3777.9,3777.1,0.001]
[1760712700679,2.64746372,3777.2,3777.1,0.001]
[1760712701025,2.64741101,3777.3,3777.1,0.001]
[1760712701231,2.64746372,3777.2,3777.1,0.001]
[1760712702039,2.64745304,3777.3,3777.1,0.001]
[1760712702228,0.41529128,3778.4,3777.1,0.7064]
[1760712702429,2.64669295,3778.3,3777.1,0.7064]
[1760712702665,0.41529128,3778.4,3777.2,0.33540561]
[1760712702838,0.0461386,3779.1,3777.1,0.001]
[1760712702839,2.64746372,3777.2,3777.1,0.001]
[1760712703763,2.6473861,3777.4,3777.1,0.001]
[1760712703965,0.04614607,3778.0,3777.1,0.001]
[1760712704270,2.64713168,3777.7,3777.2,0.4713]
[1760712704485,0.04614607,3778.0,3777.1,0.001]
[1760712704486,2.6470573,3777.8,3777.1,0.001]
[1760712704661,2.69308986,3778.0,3777.1,0.001]
[1760712704836,0.04614607,3778.0,3777.1,0.001]
[1760712705038,2.64730674,3777.5,3777.1,0.001]
[1760712705244,2.64732358,3777.4,3777.1,0.001]
[1760712705460,0.1579,3778.4,3777.1,0.4285]
[1760712705666,0.29034009,3778.4,3777.2,0.6612]
[1760712705865,0.04614417,3778.3,3777.1,0.001]
[1760712706169,2.64746372,3777.2,3777.1,0.001]
[1760712706666,2.64693288,3778.0,3777.1,0.001]
[1760712706853,2.64630368,3778.9,3777.1,2.64853169]
[1760712706854,0.0996,3778.9,3777.1,2.64853169]
[1760712707045,2.64730197,3777.5,3777.1,0.001]
[1760712707576,0.41521458,3778.6,3777.1,0.001]
[1760712707734,2.64668202,3778.4,3777.2,0.6612]
[1760712707946,0.0996,3778.9,3777.3,2.64737589]
[1760712707947,2.64688489,3778.1,3777.3,2.64737589]
[1760712708148,0.43386586,3778.8,3777.2,0.6612]
[1760712708379,2.64704567,3777.8,3777.2,0.2337]
[1760712708582,0.43386586,3778.8,3777.2,0.2337]
[1760712708775,2.64702398,3777.9,3777.2,2.88115577]
[1760712708969,0.43386586,3778.8,3777.2,0.2337]
[1760712709199,0.42106586,3778.8,3777.8,0.132]
[1760712709371,0.42106586,3778.8,3777.2,0.2337]
[1760712709372,2.64676559,3778.2,3777.3,2.64738566]
[1760712709680,2.64664085,3778.4,3778.2,0.132]
[1760712709895,0.04613452,3778.7,3778.2,0.132]
[1760712710088,0.1572,3780.5,3778.6,2.64648282]
[1760712710250,0.1572,3780.5,3778.3,3.30787744]
[1760712710251,2.64590254,3779.5,3778.3,3.30787744]
[1760712710451,2.64590254,3779.5,3777.6,2.64716146]
[1760712710452,1.728,3779.5,3777.7,0.2337]
[1760712710651,2.64646023,3778.7,3778.0,2.6468778]
[1760712710866,2.64650035,3778.6,3777.8,2.64699132]
[1760712711065,2.64599264,3779.3,3777.9,2.64695723]
[1760712711066,2.64642679,3778.7,3777.9,2.64695723]
[1760712711260,2.64642679,3778.7,3777.7,2.88079685]
[1760712711460,2.64647758,3778.7,3777.9,2.64697318]
[1760712711680,4.39,3782.5,3777.8,2.64697829]
[1760712711681,2.64655441,3778.5,3777.8,2.64697829]
[1760712712088,2.64650412,3778.6,3777.9,2.64696835]
[1760712712289,2.6466229,3778.4,3777.7,2.88079208]
[1760712712490,0.04612945,3779.2,3778.0,2.64684264]
[1760712712692,2.64648422,3778.6,3777.9,2.64692112]
[1760712712854,0.31533485,3779.2,3777.7,0.2337]
[1760712713069,0.04612945,3779.2,3777.7,0.2337]
[1760712713265,0.14612945,3779.2,3777.7,0.2337]
[1760712713488,0.14612945,3779.2,3777.2,0.2337]
[1760712713489,2.64620269,3779.0,3777.2,0.2337]
[1760712713797,2.64620269,3779.0,3777.1,0.001]
[1760712713798,2.64634275,3778.8,3777.1,0.001]
[1760712713984,0.6336,3778.7,3777.1,0.001]
[1760712714197,2.64718031,3777.7,3777.1,0.001]
[1760712714764,2.64668799,3778.4,3777.1,0.001]
[1760712714765,0.1005,3778.4,3777.1,0.001]
[1760712714970,2.64737347,3777.4,3777.1,0.001]
[1760712715165,2.64727768,3777.5,3777.1,0.001]
[1760712715398,2.64738016,3777.4,3777.1,0.001]
[1760712715600,2.64746372,3777.2,3777.1,0.001]
[1760712716499,4.47596372,3777.2,3777.1,0.001]
[1760712716735,5.10956372,3777.2,3777.1,0.001]
[1760712716999,4.37574412,3776.8,3776.7,1e-08]
[1760712717304,3.28162457,3776.4,3775.4,0.001]
[1760712717466,3.87458035,3776.4,3775.4,0.001]
[1760712717665,3.97708035,3776.4,3775.4,0.001]
[1760712717894,2.64802457,3776.4,3775.4,0.001]
[1760712718096,2.69418684,3776.4,3775.4,0.001]
[1760712718680,2.64802457,3776.4,3775.4,0.001]
[1760712719508,2.75052457,3776.4,3775.4,0.001]
[1760712719809,3.38412457,3776.4,3775.4,0.001]
[1760712719994,3.98732935,3776.4,3775.4,0.001]
[1760712720200,3.39989322,3776.4,3775.4,0.001]
[1760712720380,3.29739322,3776.4,3775.6,0.132]
[1760712720598,3.39989322,3776.4,3775.6,0.132]
[1760712720793,5.12789322,3776.4,3775.4,0.001]
[1760712721022,0.132,3776.9,3776.3,0.4433]
[1760712721331,0.68016427,3777.4,3776.3,0.4433]
[1760712721332,2.6475928,3777.1,3776.3,0.5753]
[1760712721627,0.04615446,3777.3,3776.8,0.132]
[1760712721927,2.647259,3777.5,3776.9,0.4423]
[1760712722224,0.04614559,3777.8,3776.4,2.64797615]
[1760712722401,0.44211658,3777.7,3776.3,0.001]
[1760712722605,2.64773328,3776.9,3776.3,0.001]
[1760712722804,2.64744403,3777.3,3776.3,0.001]
[1760712723007,2.64711332,3777.7,3776.3,2.64907401]
[1760712723327,2.64764381,3777.0,3776.4,0.4423]
[1760712723530,2.64770116,3776.9,3776.3,0.001]
[1760712723750,2.64788901,3776.6,3776.3,0.001]
[1760712724040,2.64720929,3777.6,3776.3,0.001]
[1760712724262,2.64787284,3776.7,3776.3,0.001]
[1760712724396,2.64788641,3776.6,3776.3,0.001]
[1760712724865,2.64802457,3776.4,3776.3,0.001]
[1760712725202,3.38062457,3776.4,3776.3,0.001]
[1760712725511,17.62152657,3776.4,3776.3,0.001]
[1760712725716,19.66404279,3776.4,3776.3,0.001]
[1760712725914,7.15114079,3776.4,3776.3,0.001]
[1760712726135,4.37602457,3776.4,3776.3,0.001]
[1760712726302,2.64802457,3776.4,3776.3,0.001]
[1760712726637,2.74762457,3776.4,3776.3,0.001]
[1760712726937,10.05678357,3776.4,3776.3,0.001]
[1760712727135,5.00962457,3776.4,3776.3,0.001]
[1760712727308,5.14178059,3776.4,3776.3,0.001]
[1760712727515,5.24138059,3776.4,3776.3,0.001]
[1760712727730,5.14178059,3776.4,3776.3,0.001]
[1760712728149,3.53603164,3776.9,3776.3,0.001]
[1760712728150,0.1551,3776.9,3776.3,0.001]
[1760712728458,0.04616197,3776.7,3776.6,2.64788434]
[1760712728620,2.79217293,3778.9,3777.0,2.64755288]
[1760712728823,2.79217293,3778.9,3777.1,0.2171]
[1760712728824,0.56121554,3778.9,3777.1,0.2171]
[1760712729044,2.64691738,3778.0,3777.2,2.64740812]
[1760712729250,2.64703598,3777.9,3777.1,0.6727]
[1760712729554,0.68029063,3778.9,3777.1,0.6727]
[1760712729759,2.64708496,3777.8,3777.1,0.6727]
[1760712729940,2.64736035,3777.4,3777.1,0.6727]
[1760712730118,0.41521103,3778.5,3777.1,0.6727]
[1760712730321,0.41521103,3778.5,3777.1,0.2171]
[1760712730551,2.64760859,3777.0,3776.3,0.001]
[1760712730726,2.64776405,3776.8,3776.3,0.001]
[1760712730923,0.6336,3778.3,3776.4,0.4556]
[1760712731118,2.64768047,3776.9,3776.4,0.4556]
[1760712731344,0.1516,3777.8,3776.4,0.4556]
[1760712731718,0.1516,3777.8,3776.3,0.001]
[1760712731719,2.77980219,3776.8,3776.3,0.001]
[1760712732047,2.64786891,3776.7,3776.3,0.001]
[1760712732249,2.64800005,3776.5,3776.3,0.001]
[1760712732436,2.64802457,3776.4,3776.3,0.001]
[1760712732637,3.17761654,3776.4,3776.3,0.001]
[1760712732927,2.64796513,3776.5,3776.3,0.001]
[1760712733128,0.002,3776.7,3776.3,0.001]
[1760712733653,0.002,3776.7,3776.5,2.64795445]
[1760712733829,0.002,3776.7,3776.6,0.4556]
[1760712734428,0.002,3776.7,3776.3,0.001]
[1760712735230,2.80218434,3776.6,3776.3,0.001]
[1760712735431,2.64802457,3776.4,3776.3,0.001]
[1760712735744,3.28190508,3776.0,3775.9,0.001]
[1760712735961,2.64830508,3776.0,3775.9,0.001]
[1760712736143,2.79400508,3776.0,3775.9,0.001]
[1760712736467,12.85179808,3776.0,3775.9,0.001]
[1760712736656,17.59925563,3776.0,3775.9,0.001]
[1760712737232,2.64893645,3775.1,3774.1,0.2171]
[1760712738044,2.91666232,3775.1,3773.5,0.2171]
[1760712738249,2.77096232,3775.1,3773.8,2.64979818]
[1760712738443,2.77096232,3775.1,3773.7,0.4556]
[1760712738680,3.55026232,3775.1,3773.7,0.4556]
[1760712738968,4.21634775,3775.1,3773.5,0.2171]
[1760712739470,2.64893645,3775.1,3774.2,0.2171]
[1760712739678,2.64893645,3775.1,3773.8,0.4556]
[1760712739861,2.64893645,3775.1,3773.5,0.2171]
[1760712739862,5.15623645,3775.1,3773.5,0.2171]
[1760712740061,5.13214904,3775.1,3773.6,0.4556]
[1760712741058,5.27784904,3775.1,3773.6,0.4556]
[1760712741438,5.27784904,3775.1,3773.5,0.2171]
[1760712741635,14.62727004,3775.1,3772.9,0.6539]
[1760712741877,16.02090289,3775.1,3773.3,0.132]
[1760712742450,16.02090289,3775.1,3772.1,2.65100353]
[1760712742451,16.02090289,3775.1,3772.0,0.6539]
[1760712742665,36.67148189,3775.1,3772.5,0.132]
[1760712742868,33.28281715,3774.7,3771.2,0.4368]
[1760712743063,10.09219215,3774.7,3772.7,0.4368]
[1760712743269,10.23789215,3774.7,3772.7,0.4368]
[1760712743571,8.72450368,3774.7,3772.7,0.4368]
[1760712743778,8.72450368,3774.7,3772.8,0.132]
[1760712743988,4.70383368,3774.7,3773.3,0.4368]
[1760712744144,9.50013568,3774.7,3773.3,0.4368]
[1760712744341,10.27943568,3774.7,3773.2,0.132]
[1760712744676,17.65804168,3774.7,3773.1,0.2139]
[1760712744892,4.65763558,3774.7,3773.4,0.5688]
[1760712745078,4.37721715,3774.7,3774.1,0.2139]
[1760712745292,4.79285559,3774.7,3774.1,0.2139]
[1760712745600,2.78121715,3774.7,3774.6,0.4378]
[1760712745797,2.78121715,3774.7,3774.6,0.001]
[1760712745952,3.32424766,3774.7,3774.6,0.001]
[1760712746153,12.88112166,3774.7,3774.6,0.001]
[1760712746467,5.68584766,3774.7,3774.6,0.001]
[1760712746807,4.37721715,3774.7,3774.6,0.001]
[1760712747147,7.60870353,3774.7,3774.6,0.001]
[1760712747384,5.42646553,3774.7,3774.6,0.001]
[1760712747561,10.43914653,3774.7,3774.6,0.001]
[1760712747774,5.42646553,3774.7,3774.6,0.001]
[1760712748112,2.65104318,3772.1,3771.7,16.796906]
[1760712748258,2.3616,3773.1,3771.8,0.4368]
[1760712748259,0.6336,3773.0,3771.8,0.4368]
[1760712748461,1.728,3773.1,3771.8,0.4368]
[1760712748661,1.728,3773.2,3771.8,0.4368]
[1760712748861,0.41581219,3773.1,3771.8,0.4368]
[1760712749072,4.376992,3773.7,3771.8,0.4368]
[1760712749281,2.65027032,3773.2,3771.8,0.4368]
[1760712749493,2.65097707,3772.2,3771.8,0.4368]
[1760712749696,2.6509729,3772.2,3772.1,0.2139]
[1760712749997,2.65132433,3771.7,3771.6,0.2139]
[1760712750295,0.12409435,3772.1,3771.3,0.2139]
[1760712750493,2.65153523,3771.4,3771.3,0.2139]
[1760712750697,2.65153523,3771.4,3771.3,0.6507]
[1760712751103,0.04620828,3772.3,3771.3,0.6507]
[1760712751404,2.651532,3771.5,3771.3,0.6507]
[1760712751613,0.04620828,3772.3,3771.4,0.4368]
[1760712751897,2.65138482,3771.7,3771.4,0.4368]
[1760712752104,2.65138482,3771.7,3770.6,2.65205838]
[1760712752105,0.173,3771.8,3769.9,0.2139]
[1760712752303,0.6336,3772.2,3769.9,0.2139]
[1760712752304,2.65188681,3770.9,3770.8,0.4368]
[1760712752805,2.65193178,3770.9,3770.4,0.2139]
[1760712752974,0.04621718,3771.8,3770.5,0.4368]
[1760712752975,2.65172909,3771.2,3770.5,0.4368]
[1760712753163,0.04621718,3771.8,3770.5,0.4368]
[1760712753367,2.65153523,3771.4,3770.5,0.4368]
[1760712753568,2.65172521,3771.2,3770.9,0.001]
[1760712753781,2.65181649,3771.0,3770.9,0.001]
[1760712754900,0.41597116,3771.5,3770.9,0.001]
[1760712755203,2.65161845,3771.3,3770.9,0.4378]